lending/lending_fUSD_20260411
["ID","MTS","AMOUNT","RATE_DAILY","PERIOD"]
[420284439,1775910650782,-415.2674,0.0002,2]
[420284440,1775910650793,-755.0,0.0002,2]
[420284441,1775910650802,-963.0,0.0002,2]
[420284442,1775910650813,-4570.0,0.0002,2]
[420284443,1775910650825,-6146.0,0.0002,2]
[420284444,1775910650837,-4189.0,0.0002,30]
[420284445,1775910650846,-3500.0,0.0002,30]
[420284446,1775910650857,-3459.0,0.0002,30]
[420284447,1775910650876,-510.0,0.0002,2]
[420284448,1775910650886,-814.0,0.0002,2]
[420284449,1775910650895,-2830.0,0.0002,2]
[420284450,1775910650910,-5000.0,0.0002,30]
[420284451,1775910650924,-5000.0,0.0002,30]
[420284452,1775910650933,-5000.0,0.0002,30]
[420284453,1775910650948,-5000.0,0.0002,30]
[420284454,1775910650964,-5000.0,0.0002,30]
[420284455,1775910650973,-5000.0,0.0002,30]
[420284456,1775910650985,-1156.0,0.0002,2]
[420284457,1775910651006,-1063.0,0.0002,2]
[420284458,1775910651015,-5000.0,0.0002,30]
[420284459,1775910651028,-5000.0,0.0002,30]
[420284460,1775910651048,-5000.0,0.0002,30]
[420284461,1775910651058,-900.0,0.0002,30]
[420284462,1775910651073,-900.0,0.0002,30]
[420284463,1775910651091,-849.0,0.0002,30]
[420284464,1775910651105,-5000.0,0.0002,30]
[420284465,1775910651117,-5000.0,0.0002,30]
[420284466,1775910651129,-5000.0,0.0002,30]
[420284467,1775910651138,-200.0,0.0002,10]
[420284468,1775910651151,-5000.0,0.0002,30]
[420284469,1775910651161,-5000.0,0.0002,30]
[420284470,1775910651173,-5000.0,0.0002,30]
[420284471,1775910651181,-5000.0,0.0002,30]
[420284472,1775910651196,-5000.0,0.0002,30]
[420284473,1775910651207,-5000.0,0.0002,30]
[420284474,1775910651218,-200.404802,0.0002,2]
[420284475,1775910651227,-150.0,0.0002,20]
[420284476,1775910651239,-825.0,0.0002,30]
[420284477,1775910651249,-4550.0,0.0002,30]
[420284478,1775910651261,-4550.0,0.0002,30]
[420284479,1775910651270,-4449.0,0.0002,30]
[420284480,1775910651279,-444.90946404,0.00020082,2]
[420284481,1775910651290,-2000.0,0.000201,2]
[420284482,1775910651299,-300.0,0.000201,10]
[420284483,1775910651312,-323.72,0.00020138,2]
[420284484,1775910651320,-2014.85,0.00020384,2]
[420284485,1775910651330,-256.15,0.00020548,2]
[420284486,1775910651340,-205.63860144,0.00020801,2]
[420284487,1775910651351,-259.93810622,0.00020801,2]
[420284488,1775910651359,-506.0,0.00020879,8]
[420284489,1775910651368,-621.78829552,0.00020931,2]
[420284490,1775910651378,-755.0,0.00021,2]
[420284491,1775910651387,-963.0,0.00021,2]
[420284492,1775910651399,-4570.0,0.00021,2]
[420284493,1775910651408,-6146.0,0.00021,2]
[420284494,1775910651417,-510.0,0.00021,2]
[420284495,1775910651427,-814.0,0.00021,2]
[420284496,1775910651437,-450.0,0.00021,2]
[420284497,1775910651447,-2830.0,0.00021,2]
[420284498,1775910651456,-1156.0,0.00021,2]
[420284499,1775910651465,-1063.0,0.00021,2]
[420284500,1775910651475,-164.07,0.00021129,7]
[420284501,1775910651485,-267.74322515,0.00021238,2]
[420284502,1775910651495,-581.84092076,0.00021238,2]
[420284503,1775910651504,-274.40722253,0.00021288,2]
[420284504,1775910651516,-480.2911,0.000213,2]
[420284505,1775910651525,-465.87,0.00021327,30]
[420284506,1775910651534,-162.35,0.0002156,7]
[420284507,1775910651543,-652.40522126,0.00021737,2]
[420284508,1775910651554,-879.82,0.00021774,2]
[420284509,1775910651563,-5000.0,0.00021918,2]
[420284510,1775910651573,-150.0,0.00021918,2]
[420284511,1775910651583,-5000.0,0.00021918,60]
[420284512,1775910651594,-5000.0,0.00021918,60]
[420284513,1775910651603,-5000.0,0.00021918,60]
[420284514,1775910651613,-755.0,0.00022,2]
[420284515,1775910651624,-963.0,0.00022,2]
[420284516,1775910651636,-4570.0,0.00022,2]
[420284517,1775910651646,-6146.0,0.00022,2]
[420284518,1775910651655,-510.0,0.00022,2]
[420284519,1775910651666,-2050.0,0.00022,60]
[420284520,1775910651679,-2050.0,0.00022,60]
[420284521,1775910651687,-2025.0,0.00022,60]
[420284522,1775910651699,-814.0,0.00022,2]
[420284523,1775910651708,-2830.0,0.00022,2]
[420284524,1775910651719,-1156.0,0.00022,2]
[420284525,1775910651729,-1063.0,0.00022,2]
[420284526,1775910651739,-798.84,0.00022,30]
[420284527,1775910651757,-9236.96688737,0.00022185,2]
[420284528,1775910651771,-825.0,0.00022356,30]
[420284529,1775910652154,-506.0,0.00022435,10]
[420284530,1775910652167,-250.0,0.00022466,2]
[420284531,1775910652192,-555.4963,0.000226,2]
[420284532,1775910652204,-755.0,0.00023,2]
[420284533,1775910652219,-963.0,0.00023,2]
[420284534,1775910652236,-4570.0,0.00023,2]
[420284535,1775910652249,-6146.0,0.00023,2]
[420284536,1775910652265,-510.0,0.00023,2]
[420284537,1775910652287,-814.0,0.00023,2]
[420284538,1775910652296,-2830.0,0.00023,2]
[420284539,1775910652306,-1156.0,0.00023,2]
[420284540,1775910652318,-1063.0,0.00023,2]
[420284541,1775910652332,-350.0,0.00023014,2]
[420284542,1775910652342,-698.8,0.00023391,30]
[420284543,1775910652352,-7322.90701729,0.000235,30]
[420284544,1775910652361,-450.0,0.00023562,2]
[420284545,1775910652379,-644.79446246,0.0002367,2]
[420284546,1775910652389,-2243.47,0.00023679,2]
[420284547,1775910652403,-1257.33,0.0002368,3]
[420284548,1775910652418,-652.40522126,0.00023791,2]
[420284549,1775910652428,-2000.0,0.000238,2]
[420284550,1775910652439,-879.82,0.00023936,2]
[420284551,1775910652456,-506.0,0.00023991,11]
[420284552,1775910652468,-642.4774,0.00024,2]
[420284553,1775910652483,-755.0,0.00024,2]
[420284554,1775910652500,-963.0,0.00024,2]
[420284555,1775910652519,-4570.0,0.00024,2]
[420284556,1775910652537,-6146.0,0.00024,2]
[420284557,1775910652569,-160.0,0.00024,30]
[420284558,1775910652595,-510.0,0.00024,2]
[420284559,1775910652657,-814.0,0.00024,2]
[420284560,1775910652787,-2830.0,0.00024,2]
[420284561,1775910652887,-1156.0,0.00024,2]
[420284562,1775910652948,-1063.0,0.00024,2]
[420284563,1775910652987,-200.0,0.00024051,2]
[420284564,1775910653010,-200.0,0.00024051,2]
[420284565,1775910653035,-200.0,0.00024051,2]
[420284566,1775910653048,-200.0,0.00024051,2]
[420284567,1775910653063,-250.0,0.00024093,5]
[420284568,1775910653087,-250.0,0.00024093,5]
[420284569,1775910653102,-250.0,0.00024093,5]
[420284570,1775910653122,-199.63,0.00024093,5]
[420284571,1775910653152,-550.0,0.0002411,2]
[420284572,1775910653183,-150.0,0.0002415,2]
[420284573,1775910653208,-164.07,0.00024314,7]
[420284574,1775910653271,-397.35378055,0.00024527,2]
[420284575,1775910653375,-250.42384568,0.00024527,2]
[420284576,1775910653422,-162.35,0.0002453,7]
[420284577,1775910653448,-294.6939484,0.00024566,7]
[420284578,1775910653468,-650.0,0.00024658,2]
[420284579,1775910653502,-528.74,0.00024658,2]
[420284580,1775910653521,-1000.0,0.00024658,2]
[420284581,1775910653552,-150.0,0.00024658,2]
[420284582,1775910653563,-360.99273957,0.00024658,2]
[420284583,1775910653581,-825.0,0.00024712,60]
[420284584,1775910653593,-9236.96688737,0.00024793,2]
[420284585,1775910653603,-2014.85,0.00024822,2]
[420284586,1775910653615,-187.00140131,0.00024873,2]
[420284587,1775910653630,-300.0,0.00024899,10]
[420284588,1775910653640,-300.0,0.00024899,10]
[420284589,1775910653649,-600661.892488,0.000249,2]
[420284590,1775910653662,-300.0,0.00024999,10]
[420284591,1775910653678,-300.0,0.00024999,10]
[420284592,1775910653688,-767.14619654,0.00025,2]
[420284593,1775910653697,-967.0,0.00025,2]
[420284594,1775910653709,-4579.0,0.00025,2]
[420284595,1775910653725,-6160.0,0.00025,2]
[420284596,1775910653735,-518.79531961,0.00025,2]
[420284597,1775910653746,-830.0,0.00025,2]
[420284598,1775910653755,-2832.0,0.00025,2]
[420284599,1775910653765,-1164.0,0.00025,2]
[420284600,1775910653775,-1069.0,0.00025,2]
[420284601,1775910653786,-1000.0,0.00025,30]
[420284602,1775910653796,-1000.0,0.00025,30]
[420284603,1775910653808,-332.65722596,0.00025042,2]
[420284604,1775910653817,-815.58723041,0.00025042,2]
[420284605,1775910653827,-197.16015672,0.00025081,2]
[420284606,1775910653836,-750.0,0.00025205,2]
[420284607,1775910653847,-743.0782,0.000253,2]
[420284608,1775910653857,-300.0,0.0002537,10]
[420284609,1775910653866,-371.7242899,0.00025396,2]
[420284610,1775910653876,-931.74,0.00025455,30]
[420284611,1775910653886,-506.0,0.00025547,12]
[420284612,1775910653896,-850.0,0.00025753,2]
[420284613,1775910653906,-652.40522126,0.00025846,2]
[420284614,1775910653916,-1000.0,0.00025847,2]
[420284615,1775910653926,-1000.0,0.00025856,7]
[420284616,1775910653937,-500.0,0.00025856,7]
[420284617,1775910653946,-150.0,0.0002589,2]
[420284618,1775910653955,-798.84,0.00025986,30]
[420284619,1775910653965,-1000.0,0.00026024,2]
[420284620,1775910653975,-300.0,0.00026055,10]
[420284621,1775910653985,-666.0,0.00026055,2]
[420284622,1775910653995,-5683.0,0.00026056,7]
[420284623,1775910654005,-2500.0,0.00026082,2]
[420284624,1775910654015,-1000.0,0.00026092,2]
[420284625,1775910654024,-879.82,0.00026099,2]
[420284626,1775910654034,-300.0,0.00026124,10]
[420284627,1775910654044,-7020.97897167,0.00026125,2]
[420284628,1775910654053,-151.873127,0.00026125,2]
[420284629,1775910654063,-9982.72689724,0.00026125,2]
[420284630,1775910654073,-5000.0,0.00026125,2]
[420284631,1775910654082,-5000.0,0.00026125,2]
[420284632,1775910654092,-5683.0,0.0002613,2]
[420284633,1775910654101,-1444.0,0.00026137,120]
[420284634,1775910654111,-5683.0,0.00026157,2]
[420284635,1775910654120,-2243.47,0.00026185,2]
[420284636,1775910654130,-5683.0,0.00026186,2]
[420284637,1775910654140,-1000.0,0.00026289,2]
[420284638,1775910654150,-950.0,0.00026301,2]
[420284639,1775910654159,-1000.0,0.00026338,2]
[420284640,1775910654169,-668.65185757,0.00026409,2]
[420284641,1775910654179,-5683.0,0.00026424,7]
[420284642,1775910654188,-5683.0,0.0002644,2]
[420284643,1775910654199,-5683.0,0.00026453,2]
[420284644,1775910654208,-1000.0,0.00026491,2]
[420284645,1775910654218,-500.0,0.000265,7]
[420284646,1775910654228,-500.0,0.000265,7]
[420284647,1775910654237,-500.0,0.000265,7]
[420284648,1775910654247,-500.0,0.000265,7]
[420284649,1775910654256,-500.0,0.000265,7]
[420284650,1775910654268,-500.0,0.000265,7]
[420284651,1775910654278,-500.0,0.000265,7]
[420284652,1775910654288,-500.0,0.000265,7]
[420284653,1775910654298,-500.0,0.000265,7]
[420284654,1775910654310,-500.0,0.000265,7]
[420284655,1775910654321,-500.0,0.000265,7]
[420284656,1775910654331,-500.0,0.000265,7]
[420284657,1775910654343,-322.96,0.000265,7]
[420284658,1775910654355,-500.0,0.000265,7]
[420284659,1775910654364,-500.0,0.000265,7]
[420284660,1775910654374,-241.27,0.000265,7]
[420284661,1775910654387,-500.0,0.000265,7]
[420284662,1775910654399,-5683.0,0.00026516,2]
[420284663,1775910654408,-5683.0,0.00026571,2]
[420284664,1775910654417,-2000.0,0.00026575,2]
[420284665,1775910654427,-1000.0,0.00026578,2]
[420284666,1775910654441,-5683.0,0.0002661,2]
[420284667,1775910654451,-5683.0,0.00026627,2]
[420284668,1775910654460,-5683.0,0.00026638,2]
[420284669,1775910654470,-203.0,0.00026642,120]
[420284670,1775910654485,-175.0,0.00026642,120]
[420284671,1775910654495,-175.0,0.00026642,120]
[420284672,1775910654504,-1000.0,0.00026648,2]
[420284673,1775910654514,-5683.0,0.00026662,2]
[420284674,1775910654530,-1531.212048,0.00026675,2]
[420284675,1775910654540,-5683.0,0.0002669,7]
[420284676,1775910654549,-859.4314,0.000267,2]
[420284677,1775910654559,-5683.0,0.00026725,2]
[420284678,1775910654575,-1401.81,0.00026766,2]
[420284679,1775910654584,-1000.0,0.00026792,2]
[420284680,1775910654593,-1000.0,0.00026815,2]
[420284681,1775910654602,-500.0,0.00026827,120]
[420284682,1775910654621,-2000.0,0.00026849,2]
[420284683,1775910654631,-1050.0,0.00026849,2]
[420284684,1775910654641,-1000.0,0.00026952,7]
[420284685,1775910654651,-500.0,0.00026952,7]
[420284686,1775910654669,-1000.0,0.00026967,2]
[420284687,1775910654679,-150.0,0.00027,2]
[420284688,1775910654689,-825.0,0.00027068,60]
[420284689,1775910654699,-250.0,0.00027068,10]
[420284690,1775910654715,-1000.0,0.00027099,120]
[420284691,1775910654724,-617.894,0.00027099,120]
[420284692,1775910654734,-506.0,0.00027102,14]
[420284693,1775910654743,-2000.0,0.00027123,2]
[420284694,1775910654763,-300.0,0.00027128,2]
[420284695,1775910654773,-1000.0,0.00027154,2]
[420284696,1775910654792,-150.0,0.00027166,2]
[420284697,1775910654805,-392.04623121,0.00027179,2]
[420284698,1775910654814,-150.0,0.00027185,2]
[420284699,1775910654829,-500.0,0.0002723,2]
[420284700,1775910654844,-1000.0,0.0002724,2]
[420284701,1775910654854,-300.0,0.00027249,2]
[420284702,1775910654863,-1635.78,0.00027258,2]
[420284703,1775910654876,-2000.0,0.0002728,3]
[420284704,1775910654888,-500.0,0.0002728,3]
[420284705,1775910654898,-200.0,0.0002728,2]
[420284706,1775910654907,-226.18081561,0.000273,30]
[420284707,1775910654917,-226.18081561,0.000273,30]
[420284708,1775910654931,-1000.0,0.000273,120]
[420284709,1775910654944,-1000.0,0.000273,120]
[420284710,1775910654953,-1000.0,0.000273,120]
[420284711,1775910654963,-1000.0,0.000273,120]
[420284712,1775910654976,-1000.0,0.000273,120]
[420284713,1775910654986,-1000.0,0.000273,120]
[420284714,1775910654995,-1000.0,0.000273,120]
[420284715,1775910655004,-1000.0,0.000273,120]
[420284716,1775910655018,-1000.0,0.000273,120]
[420284717,1775910655027,-1000.0,0.000273,120]
[420284718,1775910655037,-1000.0,0.000273,120]
[420284719,1775910655046,-1000.0,0.000273,90]
[420284720,1775910655061,-1000.0,0.000273,90]
[420284721,1775910655074,-1000.0,0.000273,90]
[420284722,1775910655083,-1000.0,0.000273,90]
[420284723,1775910655093,-1000.0,0.000273,90]
[420284724,1775910655112,-1000.0,0.000273,90]
[420284725,1775910655121,-1000.0,0.000273,90]
[420284726,1775910655132,-1000.0,0.000273,90]
[420284727,1775910655145,-1000.0,0.000273,90]
[420284728,1775910655164,-1000.0,0.000273,90]
[420284729,1775910655175,-1000.0,0.000273,90]
[420284730,1775910655189,-153.83523911,0.0002731,2]
[420284731,1775910655206,-500.0,0.0002733,2]
[420284732,1775910655220,-150.0,0.00027366,2]
[420284733,1775910655230,-193.27777778,0.0002737,120]
[420284734,1775910655247,-150.0,0.00027371,2]
[420284735,1775910655259,-150.0,0.00027372,2]
[420284736,1775910655269,-5686.0,0.00027385,7]
[420284737,1775910655286,-636.32242995,0.00027387,2]
[420284738,1775910655295,-151.0,0.00027394,7]
[420284739,1775910655307,-594.29,0.00027397,120]
[420284740,1775910655318,-478.32377485,0.00027397,2]
[420284741,1775910655335,-917.23,0.00027397,120]
[420284742,1775910655347,-1500.0,0.00027397,120]
[420284743,1775910655359,-1500.0,0.00027397,120]
[420284744,1775910655373,-1500.0,0.00027397,120]
[420284745,1775910655382,-1500.0,0.00027397,120]
[420284746,1775910655398,-1500.0,0.00027397,120]
[420284747,1775910655409,-1500.0,0.00027397,120]
[420284748,1775910655419,-1500.0,0.00027397,120]
[420284749,1775910655428,-1500.0,0.00027397,120]
[420284750,1775910655441,-1500.0,0.00027397,120]
[420284751,1775910655451,-1500.0,0.00027397,120]
[420284752,1775910655460,-1500.0,0.00027397,120]
[420284753,1775910655469,-1500.0,0.00027397,120]
[420284754,1775910655479,-1500.0,0.00027397,120]
[420284755,1775910655490,-1500.0,0.00027397,120]
[420284756,1775910655500,-1500.0,0.00027397,120]
[420284757,1775910655510,-1500.0,0.00027397,120]
[420284758,1775910655520,-1500.0,0.00027397,120]
[420284759,1775910655534,-1500.0,0.00027397,120]
[420284760,1775910655544,-1500.0,0.00027397,120]
[420284761,1775910655553,-1500.0,0.00027397,120]
[420284762,1775910655563,-1500.0,0.00027397,120]
[420284763,1775910655575,-1500.0,0.00027397,120]
[420284764,1775910655585,-1500.0,0.00027397,120]
[420284765,1775910655594,-1500.0,0.00027397,120]
[420284766,1775910655604,-1500.0,0.00027397,120]
[420284767,1775910655613,-1500.0,0.00027397,120]
[420284768,1775910655623,-1500.0,0.00027397,120]
[420284769,1775910655632,-1500.0,0.00027397,120]
[420284770,1775910655642,-2000.0,0.00027397,2]
[420284771,1775910655652,-1150.0,0.00027397,5]
[420284772,1775910655771,-500.0,0.00027397,2]
[420284773,1775910655780,-500.0,0.00027397,2]
[420284774,1775910655793,-528.74,0.00027397,2]
[420284775,1775910655803,-1000.0,0.00027397,20]
[420284776,1775910655816,-1013.13,0.00027397,2]
[420284777,1775910655826,-300.0,0.00027397,2]
[420284778,1775910655846,-31295.88,0.00027397,10]
[420284779,1775910655864,-26079.9,0.00027397,10]
[420284780,1775910655877,-500.0,0.00027397,5]
[420284781,1775910655942,-150.0,0.00027397,5]
[420284782,1775910656259,-300.0,0.00027399,10]
[420284783,1775910656307,-666.0,0.00027399,10]
[420284785,1775910656369,-300.0,0.00027399,10]
[420284786,1775910656402,-2243.47,0.00027399,120]
[420284787,1775910656420,-2243.47,0.00027399,120]
[420284788,1775910656431,-2243.47,0.00027399,120]
[420284789,1775910656441,-2243.47,0.00027399,120]
[420284790,1775910656455,-2243.58219085,0.00027399,120]
[420284791,1775910656466,-2263.97,0.000274,7]
[420284792,1775910656481,-2478.86,0.000274,7]
[420284793,1775910656492,-392721.21,0.000274,7]
[420284794,1775910656501,-1000.0,0.000274,120]
[420284795,1775910656515,-941.49458548,0.000274,2]
[420284796,1775910656524,-200.0,0.000274,2]
[420284797,1775910656547,-200.0,0.000274,2]
[420284798,1775910656562,-200.0,0.000274,2]
[420284799,1775910656580,-200.0,0.000274,2]
[420284800,1775910656598,-200.0,0.000274,2]
[420284801,1775910656611,-155.433092,0.000274,2]
[420284802,1775910656622,-202.85035273,0.000274,2]
[420284803,1775910656646,-500.0,0.0002742,2]
[420284804,1775910656755,-1000.0,0.00027427,2]
[420284805,1775910656859,-1000.0,0.00027428,2]
[420284806,1775910657065,-150.0,0.0002748,2]
[420284807,1775910657463,-300.0,0.00027485,10]
[420284808,1775910657492,-666.0,0.00027485,10]
[420284809,1775910657509,-300.0,0.00027485,10]
[420284810,1775910657556,-32009.51,0.00027486,3]
[420284811,1775910657574,-300.0,0.00027488,10]
[420284812,1775910657636,-300.0,0.00027488,10]
[420284813,1775910657728,-1000.0,0.00027488,2]
[420284814,1775910657764,-5683.0,0.00027489,2]
[420284815,1775910657774,-151.0,0.00027497,7]
[420284816,1775910657783,-300.0,0.00027499,10]
[420284817,1775910657819,-666.0,0.00027499,10]
[420284818,1775910657829,-300.0,0.00027499,10]
[420284819,1775910657839,-666.0,0.00027499,10]
[420284820,1775910657851,-300.0,0.00027499,10]
[420284821,1775910657861,-300.0,0.00027499,10]
[420284822,1775910657877,-666.0,0.00027499,10]
[420284823,1775910657887,-295.90885131,0.00027499,10]
[420284824,1775910657907,-150.0,0.00027499,2]
[420284825,1775910657917,-150.0,0.00027499,2]
[420284826,1775910657925,-207.30275556,0.00027499,2]
[420284827,1775910657938,-509971.71947225,0.000275,2]
[420284828,1775910659077,-151.0,0.00013668,2]
[420284829,1775910659093,-34257.65905451,0.000275,2]
[420284830,1775910660293,-500.0,8.8e-05,3]
[420284831,1775910660318,-3525.0,0.00011664,2]
[420284832,1775910660328,-2755.681321,0.00013424,2]
[420284833,1775910660337,-151.0,0.00013668,2]
[420284834,1775910660357,-151.0,0.00013668,2]
[420284835,1775910660368,-151.0,0.00013668,2]
[420284836,1775910660378,-151.0,0.00013668,2]
[420284837,1775910660403,-151.0,0.00013668,2]
[420284838,1775910660412,-1987.964537,0.00014095,2]
[420284839,1775910660422,-535.94932508,0.00014664,2]
[420284840,1775910660460,-534.13867492,0.00014664,2]
[420284841,1775910660478,-139.16132508,0.00015438,2]
[420284842,1775910661210,-800.0,8.9e-05,3]
[420284843,1775910661221,-1100.0,9e-05,3]
[420284844,1775910661230,-151.0,0.00013668,2]
[420284845,1775910661238,-151.0,0.00013668,2]
[420284846,1775910661257,-112.54644821,0.00013668,2]
[420284847,1775910661273,-38.45355179,0.00013668,2]
[420284848,1775910661291,-151.0,0.00013668,2]
[420284849,1775910661301,-151.0,0.00013668,2]
[420284850,1775910661313,-151.0,0.00013668,2]
[420284851,1775910661327,-151.0,0.00013668,2]
[420284852,1775910661340,-894.58023392,0.00015438,2]
[420284853,1775910661351,-371.086713,0.00017451,2]
[420284854,1775910661362,-625.37378103,0.00027397,10]
[420284867,1775910832699,-3800.9,0.0002,30]
[420284868,1775910832726,-3477.01,0.00022,30]
[420284869,1775910832756,-2267.81,0.00022358,30]
[420284870,1775910832786,-156.25834205,0.00023186,120]
[420284871,1775910832812,-2072.48,0.00024715,60]
[420284872,1775910832843,-1449.18,0.00025989,30]
[420284873,1775910832873,-500.0,0.0002707,120]
[420284874,1775910832905,-1758.78,0.00027073,60]
[420284875,1775910832952,-573.8,0.00027397,120]
[420284876,1775910833027,-500.0,0.00027507,120]
[420284877,1775910833084,-1164.67,0.00027519,30]
[420284878,1775910833170,-203.0,0.00027974,120]
[420284879,1775910833217,-175.0,0.00027974,120]
[420284880,1775910833263,-175.0,0.00027974,120]
[420284881,1775910833323,-1900759.16390387,0.00028,120]
[420284882,1775910833359,-301.34106165,0.00028,120]
[420284883,1775910833398,-958.665,0.00028,90]
[420284884,1775910833474,-3000.0,0.00028,90]
[420284885,1775910833522,-761.98152102,0.00028047,120]
[420284886,1775910833570,-917.23,0.00028219,120]
[420284887,1775910833619,-380.99076051,0.0002822,120]
[420284888,1775910833677,-314.28159982,0.00028267,120]
[420284889,1775910833727,-157.11065416,0.00028286,120]
[420284890,1775910833769,-190.49538026,0.00028288,120]
[420284891,1775910833801,-213.82886569,0.00028297,120]
[420284892,1775910833830,-500.0,0.00028301,120]
[420284893,1775910833865,-257.74207613,0.00028312,120]
[420284894,1775910833901,-190.49538026,0.00028315,120]
[420284895,1775910833933,-297.64903164,0.00028327,120]
[420284896,1775910833959,-190.49538026,0.00028347,120]
[420284897,1775910833986,-186.03064478,0.00028387,120]
[420284898,1775910834371,-1000.0,0.000284,120]
[420284899,1775910834402,-174.71005469,0.00028401,120]
[420284900,1775910834440,-573.8,0.00028466,120]
[420284901,1775910834485,-380.99076052,0.00028469,120]
[420284902,1775910834525,-2957.58,0.000285,40]
[420284903,1775910834560,-500.0,0.000285,40]
[420284904,1775910834595,-500.57,0.000285,40]
[420284905,1775910834636,-502.36,0.000285,40]
[420284906,1775910834890,-500.0,0.000285,40]
[420284907,1775910834940,-214.30730279,0.00028614,120]
[420284908,1775910834991,-187.0,0.00028633,120]
[420284909,1775910835043,-285.74307039,0.00028716,120]
[420284910,1775910835088,-500.0,0.00028767,120]
[420284911,1775910835127,-500.0,0.00028767,120]
[420284912,1775910835165,-500.0,0.00028767,120]
[420284913,1775910835195,-500.0,0.00028767,120]
[420284914,1775910835236,-500.0,0.00028767,120]
[420284915,1775910835285,-500.0,0.00028767,120]
[420284916,1775910835322,-216.03226345,0.00028767,120]
[420284917,1775910835369,-2000.0,0.00028767,57]
[420284918,1775910835408,-154.77749646,0.000288,120]
[420284919,1775910835442,-201.0,0.0002882,30]
[420284920,1775910835489,-2729.16308032,0.00029,120]
[420284921,1775910835523,-1000.0,0.00029,120]
[420284922,1775910835559,-1756.63897209,0.00029,30]
[420284923,1775910835592,-300.0,0.00029,120]
[420284924,1775910835625,-9267.44,0.00029,30]
[420284925,1775910835663,-1584.42199807,0.00029,120]
[420284926,1775910835693,-4984.76381732,0.00029,60]
[420284927,1775910835725,-900.0,0.00029,60]
[420284928,1775910835767,-900.0,0.00029,60]
[420284929,1775910835806,-898.0,0.00029,60]
[420284930,1775910835860,-150.0,0.00029,60]
[420284931,1775910835922,-249.0,0.00029,60]
[420284932,1775910836010,-500.0,0.00029041,120]
[420284933,1775910836122,-917.24,0.00029041,120]
[420284934,1775910836243,-1000.0,0.000291,30]
[420284935,1775910836308,-1000.0,0.000292,30]
[420284936,1775910836349,-157.11065417,0.00029298,120]
[420284937,1775910836387,-640.0,0.000293,30]
[420284938,1775910836420,-203.0,0.00029373,120]
[420284939,1775910836457,-175.0,0.00029373,120]
[420284940,1775910836495,-175.0,0.00029373,120]
[420284941,1775910836525,-15646.42501508,0.000295,120]
[420284942,1775910836554,-250.0,0.00029534,120]
[420284943,1775910836586,-250.0,0.00029534,120]
[420284944,1775910836621,-165.0,0.00029534,120]
[420284945,1775910836654,-573.8,0.00029534,120]
[420284946,1775910836691,-1397.61,0.00029583,30]
[420284947,1775910836723,-600.0,0.00029583,30]
[420284948,1775910836755,-600.0,0.00029583,30]
[420284949,1775910836792,-598.0,0.00029583,30]
[420284950,1775910836827,-266.0,0.00029583,30]
[420284951,1775910836868,-500.0,0.00029863,120]